bitfinex/quotes_ETHUSD_20250214
["timestamp","ask_amount","ask_price","bid_price","bid_amount"]
[1739540149258,0.833,2702.6,2701.5,4.03543]
[1739540149599,3.70071,2702.2,2701.6,4.25151]
[1739540149966,3.70033,2702.5,2701.8,0.55]
[1739540150167,4.42727516,2702.7,2702.1,0.8838]
[1739540150501,3.69993,2702.8,2702.3,0.55]
[1739540150790,4.150573,2702.8,2702.3,0.55]
[1739540151152,3.70002,2702.7,2702.2,0.55]
[1739540151589,4.150573,2702.8,2702.1,0.3338]
[1739540151805,0.450643,2702.8,2702.2,0.55]
[1739540151975,3.70027,2702.6,2702.2,0.55]
[1739540152178,4.4853563,2702.6,2702.2,0.55]
[1739540152983,3.69973,2702.9,2702.4,0.55]
[1739540153355,3.69973,2702.9,2702.2,7.95119]
[1739540153572,7.39954,2702.9,2702.2,4.25058]
[1739540153985,7.39956,2702.9,2702.2,4.25058]
[1739540154169,3.69973,2702.9,2702.4,0.55]
[1739540154569,3.70035,2702.5,2702.3,0.55]
[1739540154771,3.70035,2702.5,2702.1,0.3338]
[1739540155104,3.70035,2702.5,2702.2,0.55]
[1739540155305,3.70055,2702.3,2702.2,0.55]
[1739540155520,0.74009,2702.3,2701.7,4.03509]
[1739540156018,3.70052,2702.4,2701.7,4.03505]
[1739540156220,3.70077,2702.2,2701.7,0.3338]
[1739540156582,3.70077,2702.2,2701.8,0.55]
[1739540157059,3.70077,2702.2,2701.8,0.8012]
[1739540157594,3.7005,2702.4,2701.8,4.50243]
[1739540157769,0.37005,2702.3,2701.8,4.50243]
[1739540158113,0.369973,2702.9,2702.4,3.70034]
[1739540158407,0.369973,2702.9,2702.5,0.55]
[1739540158708,0.369973,2702.9,2702.4,4.25038]
[1739540159009,0.369973,2702.9,2702.4,7.95066]
[1739540159228,1.53683145,2703.4,2702.3,0.6378]
[1739540159378,0.1,2704.4,2702.3,0.6378]
[1739540159379,0.8065,2704.0,2703.1,0.55]
[1739540159582,0.8065,2704.0,2703.1,0.3338]
[1739540159781,4.50425,2704.4,2703.4,3.69898]
[1739540160002,3.6979,2704.3,2703.7,0.55]
[1739540160384,0.8065,2704.4,2703.9,0.55]
[1739540160565,3.69741,2704.6,2703.8,3.69848]
[1739540160765,0.369741,2704.5,2703.9,0.55]
[1739540160966,3.69769,2704.4,2703.9,0.55]
[1739540161224,0.369741,2704.5,2703.7,0.55]
[1739540161362,7.39639,2704.1,2703.7,0.55]
[1739540161569,3.69845,2703.9,2703.3,3.305]
[1739540162532,0.8065,2704.1,2703.6,0.55]
[1739540162822,3.698,2704.2,2703.5,3.69887]
[1739540163023,0.739588,2704.1,2703.6,0.55]
[1739540163241,4.437668,2704.1,2703.5,3.55]
[1739540163744,8.135868,2704.1,2703.5,3.55]
[1739540164046,3.69824,2704.0,2703.5,3.55]
[1739540164227,3.69845,2703.9,2703.3,0.55]
[1739540164434,3.69824,2704.0,2703.3,4.24908]
[1739540164730,3.69859,2703.8,2703.2,0.3338]
[1739540165338,3.69873,2703.7,2703.2,0.3338]
[1739540165700,3.69873,2703.7,2703.3,0.55]
[1739540165994,0.369873,2703.6,2703.3,0.55]
[1739540166446,3.69908,2703.4,2702.8,4.03359]
[1739540166628,3.69932,2703.2,2702.8,0.3338]
[1739540166944,3.69891,2703.5,2702.9,0.55]
[1739540167546,3.69865,2703.7,2702.9,0.55]
[1739540167714,0.7934,2703.9,2703.3,3.69909]
[1739540167896,4.437708,2704.1,2703.5,0.55]
[1739540168101,3.69836,2703.9,2703.5,0.55]
[1739540168301,0.5231108,2704.0,2703.3,7.24912]
[1739540168547,0.5231108,2704.0,2703.5,0.55]
[1739540168749,0.5231108,2704.0,2703.6,0.55]
[1739540168949,3.69789,2704.3,2703.6,0.55]
[1739540169102,3.69781,2704.3,2703.8,0.55]
[1739540169304,4.49099,2704.5,2704.0,0.55]
[1739540169742,3.69775,2704.4,2704.0,0.55]
[1739540169939,3.69759,2704.5,2704.0,0.55]
[1739540170144,4.437082,2704.5,2704.0,0.55]
[1739540170721,3.69771,2704.4,2704.0,0.55]
[1739540170920,4.437082,2704.5,2704.0,0.55]
[1739540171312,3.69767,2704.4,2703.8,0.55]
[1739540171511,3.69767,2704.4,2704.0,0.55]
[1739540171712,4.437082,2704.5,2704.0,0.55]
[1739540171938,3.69713,2704.8,2704.3,0.55]
[1739540172137,3.69708,2704.9,2704.3,0.55]
[1739540172604,0.7934,2705.1,2704.1,3.55]
[1739540172605,3.69741,2704.6,2704.1,3.55]
[1739540173220,3.69741,2704.6,2704.1,3.0]
[1739540173450,3.69721,2704.8,2704.2,0.55]
[1739540173749,4.066931,2704.8,2704.0,3.0]
[1739540173953,4.066931,2704.8,2704.1,3.69807]
[1739540174252,0.369721,2704.8,2704.4,0.55]
[1739540174459,4.49014,2705.1,2704.6,0.55]
[1739540174645,0.7934,2705.1,2704.6,0.55]
[1739540174822,3.69751,2704.6,2704.3,0.3338]
[1739540175152,3.69737,2704.7,2704.0,6.69813]
[1739540175453,0.739445,2704.7,2704.3,3.55]
[1739540175661,0.739445,2704.7,2704.3,0.55]
[1739540175955,3.6972,2704.8,2704.4,0.55]
[1739540176502,3.69732,2704.7,2704.4,0.55]
[1739540176707,3.69701,2704.9,2704.4,0.55]
[1739540176903,3.6973,2704.7,2704.4,0.55]
[1739540177931,3.6974,2704.6,2704.4,0.55]
[1739540178184,4.43701,2704.5,2703.9,3.3338]
[1739540178324,4.43701,2704.5,2703.9,0.3338]
[1739540178523,0.73947,2704.5,2704.1,0.55]
[1739540179226,0.73947,2704.5,2704.1,4.24807]
[1739540179437,3.69754,2704.5,2704.1,0.55]
[1739540179863,3.69769,2704.4,2704.0,0.55]
[1739540180013,3.69754,2704.5,2704.0,0.55]
[1739540180943,3.6976,2704.5,2704.0,0.55]
[1739540181526,4.43031358,2704.8,2704.3,0.55]
[1739540181722,3.6975,2704.6,2704.1,0.55]
[1739540182058,3.69769,2704.4,2704.0,0.55]
[1739540182210,3.69807,2704.2,2704.0,0.55]
[1739540182416,3.69837,2703.9,2703.6,0.3338]
[1739540182666,0.369837,2703.8,2703.6,0.3338]
[1739540182968,3.69791,2704.3,2703.7,3.0]
[1739540183176,3.69791,2704.3,2703.8,3.69849]
[1739540183313,3.69791,2704.3,2703.7,3.0]
[1739540183314,3.69791,2704.3,2703.9,0.55]
[1739540183773,3.69795,2704.2,2703.9,0.55]
[1739540183945,7.39598,2704.2,2703.9,0.55]
[1739540184261,0.739598,2704.1,2703.7,3.0]
[1739540184501,3.69795,2704.2,2703.8,0.55]
[1739540184658,3.69808,2704.1,2703.8,0.55]
[1739540184968,3.69808,2704.1,2703.6,0.3338]
[1739540184969,3.69831,2704.0,2703.6,0.3338]
[1739540185259,0.788,2704.5,2703.7,0.55]
[1739540185457,3.69843,2703.9,2703.3,4.0329]
[1739540185667,7.39688,2703.9,2703.3,4.0329]
[1739540185881,3.69865,2703.7,2703.4,3.0]
[1739540186070,3.69865,2703.7,2703.3,3.3338]
[1739540186583,3.69865,2703.7,2703.1,0.55]
[1739540186765,3.69898,2703.5,2703.1,3.0]
[1739540186983,3.69898,2703.5,2702.9,0.299]
[1739540187154,4.068878,2703.5,2702.9,0.299]
[1739540187354,3.69905,2703.4,2703.0,3.55]
[1739540187578,3.69905,2703.4,2702.7,6.2008]
[1739540187738,3.69905,2703.4,2702.8,3.69981]
[1739540187934,3.69905,2703.4,2703.0,0.55]
[1739540188250,3.69928,2703.3,2702.9,0.55]
[1739540188850,0.7767928,2703.4,2702.9,0.55]
[1739540189050,4.4758328,2703.4,2702.9,4.24964]
[1739540189274,3.69849,2703.8,2703.1,0.55]
[1739540189467,1.527688,2703.9,2703.1,0.55]
[1739540189699,1.527688,2703.9,2703.1,3.69934]
[1739540189867,3.6986,2703.8,2703.3,3.69914]
[1739540190399,8.18498,2703.9,2703.4,0.55]
[1739540190597,4.43631628,2704.0,2703.4,0.8838]
[1739540190892,3.69843,2703.9,2703.4,0.8838]
[1739540191477,3.69857,2703.8,2703.4,0.8838]
[1739540191788,3.69843,2703.9,2703.4,0.8838]
[1739540192306,0.73805628,2704.0,2703.4,0.8838]
[1739540192597,0.788,2704.5,2703.6,0.55]
[1739540192900,0.788,2704.5,2703.5,4.41349277]
[1739540192901,3.69762,2704.5,2703.8,6.69848]
[1739540193046,3.69762,2704.5,2703.9,3.69833]
[1739540193243,7.39525,2704.5,2704.0,0.55]
[1739540193506,3.69768,2704.4,2704.0,0.55]
[1739540193793,3.69762,2704.5,2704.0,0.55]
[1739540194008,4.51067294,2704.5,2703.9,0.55]
[1739540194295,8.20834294,2704.5,2703.9,4.24833]
[1739540194607,3.69796,2704.2,2703.9,0.55]
[1739540194808,0.81305294,2704.5,2703.7,0.3338]
[1739540195010,3.69759,2704.5,2704.0,3.69818]
[1739540195212,0.73557941,2704.7,2704.1,0.55]
[1739540195506,0.73557941,2704.7,2704.3,0.55]
[1739540195709,3.6975,2704.6,2704.1,0.55]
[1739540195997,3.69809,2704.1,2703.7,0.3338]
[1739540196192,3.69862,2703.8,2703.4,0.3338]
[1739540196393,3.69856,2703.8,2703.2,3.69924]
[1739540196567,3.69856,2703.8,2703.3,3.69917]
[1739540196749,3.69856,2703.8,2703.4,0.55]
[1739540196945,0.7769,2704.4,2703.6,0.55]
[1739540196946,3.69805,2704.2,2703.6,0.55]
[1739540197270,4.14089794,2704.5,2703.6,3.0]
[1739540197602,3.69771,2704.4,2703.9,3.69823]
[1739540200353,0.739578,2704.2,2703.8,0.55]
[1739540200583,3.69805,2704.2,2703.8,0.55]
[1739540201180,3.69818,2704.1,2703.8,0.55]
[1739540201380,3.69802,2704.2,2703.8,0.55]
[1739540201787,3.69781,2704.3,2703.9,0.3338]
[1739540202009,3.69796,2704.2,2703.9,0.3338]
[1739540202325,3.69836,2703.9,2703.8,0.55]
[1739540203356,3.69865,2703.7,2703.2,0.3338]
[1739540203787,5.92222,2704.0,2703.0,3.0]
[1739540204111,7.39797,2703.5,2703.0,3.0]
[1739540204261,7.39797,2703.5,2703.1,0.55]
[1739540204639,5.92222,2704.0,2703.1,3.69937]
[1739540204640,3.69877,2703.6,2703.1,3.69937]
[1739540204801,7.39766,2703.6,2703.1,0.55]
[1739540205102,3.69897,2703.5,2703.1,0.55]
[1739540205298,3.69905,2703.4,2703.1,0.55]
[1739540205481,7.39818,2703.4,2703.1,0.55]
[1739540205683,3.69919,2703.3,2703.1,0.55]
[1739540206006,3.69905,2703.4,2703.1,0.55]
[1739540206212,4.438754,2703.5,2703.1,0.55]
[1739540206555,0.7769,2703.6,2703.1,0.55]
[1739540206900,3.69868,2703.7,2703.2,0.3338]
[1739540206901,3.69872,2703.7,2703.2,0.3338]
[1739540207299,3.69872,2703.7,2703.2,4.03311]
[1739540207654,3.6985,2703.8,2703.3,0.55]
[1739540207854,3.6985,2703.8,2703.3,4.24915]
[1739540208436,3.69871,2703.7,2703.3,0.55]
[1739540209078,3.6985,2703.8,2703.3,4.24904]
[1739540209279,3.69844,2703.9,2703.5,0.55]
[1739540209505,4.14155675,2703.9,2703.5,0.55]
[1739540209716,3.69856,2703.8,2703.3,0.55]
[1739540209891,3.69871,2703.7,2703.3,0.55]
[1739540210509,3.69889,2703.6,2703.3,0.55]
[1739540210918,3.69889,2703.6,2703.2,0.3338]
[1739540210919,0.739748,2703.6,2703.2,0.3338]
[1739540211080,3.69885,2703.6,2703.2,0.3338]
[1739540211284,3.69885,2703.6,2703.0,3.0]
[1739540211285,3.699,2703.5,2703.0,3.0]
[1739540211537,3.69902,2703.5,2703.1,0.55]
[1739540211892,4.522027,2703.5,2703.1,0.55]
[1739540212093,3.69902,2703.5,2703.1,0.55]
[1739540212350,3.69902,2703.5,2703.1,4.24945]
[1739540212487,3.69902,2703.5,2703.1,0.55]
[1739540212687,3.69873,2703.7,2703.3,0.55]
[1739540213188,3.6985,2703.8,2703.3,4.24914]
[1739540213389,3.69844,2703.9,2703.3,0.55]
[1739540213585,3.69849,2703.8,2703.3,0.55]
[1739540213833,3.69849,2703.8,2703.1,0.55]
[1739540214033,3.69879,2703.6,2703.1,4.24944]
[1739540214234,3.69901,2703.5,2703.1,0.55]
[1739540214432,3.6997,2703.0,2702.4,3.70028]
[1739540214734,3.69981,2702.9,2702.4,7.40062]
[1739540214934,3.69953,2703.1,2702.6,0.55]
[1739540215236,3.69953,2703.1,2702.6,3.70006]
[1739540215407,3.69959,2703.0,2702.5,3.0]
[1739540215803,3.69987,2702.8,2702.5,3.0]
[1739540216036,3.69987,2702.8,2702.3,3.3338]
[1739540216395,3.69987,2702.8,2702.4,0.55]
[1739540216933,3.69987,2702.8,2702.3,0.3338]
[1739540217124,3.70013,2702.7,2702.1,7.22625701]
[1739540217519,3.70013,2702.7,2702.2,6.70068]
[1739540217705,0.8322,2702.8,2702.4,0.55]
[1739540217908,4.53206,2702.8,2702.4,0.55]
[1739540218231,4.53206,2702.8,2702.3,3.70054]
[1739540218232,4.53206,2702.8,2702.3,0.55]
[1739540218544,3.70014,2702.6,2702.3,0.55]
[1739540218724,3.70014,2702.6,2702.0,4.03467]
[1739540219040,3.70014,2702.6,2702.1,4.25074]
[1739540220645,4.53215,2702.8,2702.1,3.55]
[1739540220937,3.70011,2702.7,2702.3,0.55]
[1739540221140,3.7002,2702.6,2702.1,3.55]
[1739540221339,3.70011,2702.7,2702.1,3.55]
[1739540221340,3.70029,2702.5,2702.1,3.55]
[1739540221718,8.223456,2702.7,2702.1,7.25081]
[1739540221918,4.523336,2702.7,2702.2,3.70066]
[1739540222099,3.70008,2702.7,2702.4,0.55]
[1739540222304,3.70008,2702.7,2702.2,0.55]
[1739540222499,3.70051,2702.4,2702.2,0.55]
[1739540222941,0.8322,2702.8,2701.8,0.2512]
[1739540223118,3.70109,2701.9,2701.8,0.2512]
[1739540224132,4.524516,2701.9,2701.8,0.2512]
[1739540231083,3.70165,2701.5,2701.3,0.55]
[1739540231484,3.70178,2701.4,2701.3,0.55]
[1739540231771,3.70165,2701.5,2701.1,0.55]
[1739540232552,3.70139,2701.7,2701.1,0.55]
[1739540232754,3.70175,2701.5,2701.1,0.55]
[1739540232955,3.70186,2701.4,2701.1,0.55]
[1739540233677,3.70193,2701.3,2701.1,0.55]
[1739540233842,8.16372,2701.5,2701.1,0.55]
[1739540234018,3.70175,2701.5,2701.1,0.55]
[1739540234563,4.4790789,2701.5,2701.1,0.55]
[1739540234775,3.70178,2701.4,2700.9,0.55]
[1739540235486,3.70208,2701.2,2700.9,0.55]
[1739540235625,3.70208,2701.2,2700.7,3.3338]
[1739540236321,3.7023,2701.1,2700.7,0.3338]
[1739540236516,3.70243,2701.0,2700.4,0.3338]
[1739540236889,0.446228,2701.1,2700.4,0.3338]
[1739540236890,3.70276,2700.7,2700.4,0.3338]
[1739540237420,3.7029,2700.6,2700.1,3.70345]
[1739540237626,3.7029,2700.6,2700.1,3.3338]
[1739540237866,3.70276,2700.7,2700.1,0.3338]
[1739540238028,4.443291,2700.7,2700.2,0.55]
[1739540239262,0.740531,2700.7,2700.2,0.55]
[1739540239465,0.446228,2701.1,2700.6,0.3338]
[1739540239669,0.7602,2701.3,2700.6,0.3338]
[1739540239882,3.70276,2700.7,2700.3,0.3338]
[1739540240061,3.70303,2700.5,2700.3,0.3338]
[1739540240399,3.70303,2700.5,2700.1,3.0]
[1739540240906,4.4935,2700.7,2700.2,0.55]
[1739540241202,3.70224,2701.1,2700.2,0.55]
[1739540241203,3.70255,2700.9,2700.2,4.25334]
[1739540241404,4.152025,2700.8,2700.2,4.25334]
[1739540241711,4.152025,2700.8,2700.2,0.55]
[1739540241712,0.449325,2700.8,2700.2,0.55]
[1739540241911,3.70282,2700.7,2700.2,0.55]
[1739540242180,3.70302,2700.5,2700.2,0.55]
[1739540242538,3.70281,2700.7,2700.2,0.55]
[1739540242984,3.70289,2700.6,2700.2,0.55]
[1739540243475,4.44406659,2700.8,2700.2,0.55]
[1739540243682,5.33779925,2700.8,2700.2,4.25335]
[1739540243974,1.63509925,2700.8,2700.2,4.25335]
[1739540244183,3.70288,2700.6,2700.2,0.55]
[1739540244483,3.70277,2700.7,2700.2,4.25334]
[1739540244655,1.63509925,2700.8,2700.4,0.55]
[1739540244882,5.33776925,2700.8,2700.4,0.55]
[1739540245354,3.247426,2701.9,2700.1,6.70348]
[1739540245355,0.7907,2701.3,2700.2,3.55]
[1739540245623,6.72098328,2701.7,2700.2,3.55]
[1739540245624,3.7022,2701.1,2700.6,0.55]
[1739540245765,3.70238,2701.0,2700.6,0.55]
[1739540245966,3.7022,2701.1,2700.6,0.55]
[1739540246314,7.40398,2701.3,2700.7,3.70265]
[1739540246470,0.740398,2701.2,2700.7,3.70265]
[1739540246671,3.70221,2701.1,2700.6,4.25287]
[1739540247039,3.70221,2701.1,2700.6,4.2528]
[1739540247887,3.70221,2701.1,2700.6,0.55]
[1739540248086,3.70242,2701.0,2700.6,0.55]
[1739540249084,0.74314606,2701.2,2700.6,4.25286]
[1739540249414,4.14678561,2701.1,2700.6,4.25286]
[1739540249927,4.14678561,2701.1,2700.6,0.55]
[1739540250109,3.70233,2701.0,2700.6,0.55]
[1739540250427,3.70246,2700.9,2700.3,4.03698]
[1739540250623,3.7026,2700.8,2700.4,0.55]
[1739540250807,0.740506,2700.8,2700.4,0.55]
[1739540251214,0.740506,2700.8,2700.4,4.25302]
[1739540251524,3.70246,2700.9,2700.6,0.55]
[1739540251696,4.14679561,2701.1,2700.6,4.25275]
[1739540251897,3.70214,2701.2,2700.9,0.55]
[1739540252101,3.70219,2701.1,2700.6,3.70278]
[1739540252298,3.70219,2701.1,2700.7,0.55]
[1739540252503,3.70237,2701.0,2700.7,0.55]
[1739540252810,3.70255,2700.9,2700.4,3.70308]
[1739540253005,0.370255,2700.8,2700.3,0.3338]
[1739540253204,3.70275,2700.7,2700.3,4.03707]
[1739540253413,3.70275,2700.7,2700.4,0.55]
[1739540253646,4.072855,2700.8,2700.4,0.55]
[1739540253990,3.70313,2700.5,2700.2,0.3338]
[1739540254184,3.70301,2700.6,2700.2,0.3338]
[1739540254425,4.1100255,2700.7,2700.3,0.55]
[1739540254590,0.4072855,2700.7,2700.3,4.25328]
[1739540254789,4.1100955,2700.7,2700.3,0.55]
[1739540255025,4.15091205,2700.6,2700.3,0.55]
[1739540255225,0.44802205,2700.6,2700.3,0.55]
[1739540255601,3.70301,2700.5,2700.3,0.55]
[1739540255803,4.15097205,2700.6,2700.3,0.55]
[1739540256157,0.44802205,2700.6,2700.3,0.55]
[1739540256297,1.10044549,2700.8,2700.3,0.55]
[1739540256498,7.4057,2700.7,2700.3,0.55]
[1739540256698,0.73019049,2700.8,2700.3,0.55]
[1739540257049,3.70274,2700.7,2700.3,0.55]
[1739540257357,3.70257,2700.9,2700.4,3.70306]
[1739540257572,4.45217,2701.3,2700.7,3.70274]
[1739540257707,4.147287,2701.2,2700.8,0.55]
[1739540258038,0.445217,2701.2,2700.8,0.55]
[1739540258244,4.147297,2701.2,2700.8,0.55]
[1739540258638,0.445217,2701.2,2700.8,4.25258]
[1739540258827,0.445217,2701.2,2700.8,0.55]
[1739540259026,4.147337,2701.2,2700.8,0.55]
[1739540259229,3.70226,2701.1,2700.8,0.55]
[1739540259562,0.7502,2701.0,2700.5,3.70293]
[1739540259726,0.7502,2701.0,2700.6,0.55]
[1739540259930,4.45221,2701.3,2700.6,0.55]
[1739540260130,3.70205,2701.2,2700.6,4.2528]
[1739540260318,0.815426,2701.1,2700.6,0.55]
[1739540260517,3.70228,2701.1,2700.6,0.55]
[1739540260940,3.70246,2701.0,2700.5,3.70292]
[1739540261318,3.70248,2700.9,2700.4,3.55]
[1739540261763,3.70228,2701.1,2700.5,3.703]
[1739540262064,3.70236,2701.0,2700.5,3.703]
[1739540262356,4.442824,2701.0,2700.5,3.70291]
[1739540262852,0.740464,2701.0,2700.5,3.70291]
[1739540263028,0.740464,2701.0,2700.7,0.55]
[1739540263212,3.70219,2701.1,2700.7,0.55]
[1739540263414,3.70243,2701.0,2700.7,0.55]
[1739540263925,3.70219,2701.1,2700.7,0.55]
[1739540264252,3.70192,2701.3,2700.9,0.8838]
[1739540264551,0.7502,2701.6,2701.1,0.55]
[1739540264749,4.44021371,2701.5,2701.1,0.55]
[1739540264962,4.95925508,2701.5,2701.1,4.25218]
[1739540265149,4.95925508,2701.5,2701.1,0.55]
[1739540265459,8.66099508,2701.5,2701.1,0.55]
[1739540265754,3.70181,2701.4,2701.0,0.55]
[1739540266335,4.95926508,2701.5,2701.0,0.55]
[1739540266534,0.49592651,2701.4,2701.0,0.55]
[1739540266749,3.70178,2701.4,2701.0,0.55]
[1739540266946,0.73856371,2701.5,2701.0,0.55]
[1739540267145,4.44021371,2701.5,2701.0,4.25226]
[1739540267347,3.70179,2701.4,2701.0,0.55]
[1739540267850,0.73856371,2701.5,2701.0,0.55]
[1739540268020,0.44400837,2701.4,2701.0,0.55]
[1739540268359,4.14581837,2701.4,2701.0,0.55]
[1739540268718,4.14581837,2701.4,2701.0,0.53717521]
[1739540268957,0.44400837,2701.4,2701.0,4.23941521]
[1739540269268,0.44400837,2701.4,2701.1,3.70213]
[1739540269438,0.44400837,2701.4,2701.0,3.70224]
[1739540269766,0.7502,2702.5,2701.2,0.3338]
[1739540269967,4.45048,2702.5,2701.6,7.23469439]
[1739540270172,3.70028,2702.5,2702.1,0.3338]
[1739540270839,3.70028,2702.5,2702.2,0.55]
[1739540271034,0.44261686,2702.4,2701.8,0.3338]
[1739540271232,3.70106,2702.0,2701.4,4.03548]
[1739540271436,7.40212,2702.0,2701.4,4.03548]
[1739540271795,3.70125,2701.8,2701.4,0.3338]
[1739540271924,3.70106,2702.0,2701.4,4.03548]
[1739540272241,3.70106,2702.0,2701.6,0.55]
[1739540272433,4.071266,2701.9,2701.6,0.55]
[1739540272853,4.071266,2701.9,2701.2,0.3338]
[1739540273054,4.071266,2701.9,2701.3,3.70188]
[1739540273256,3.70138,2701.7,2701.2,0.3338]
[1739540273450,4.071276,2701.9,2701.2,4.03575]
[1739540273765,0.4071276,2701.8,2701.3,4.25191]
[1739540274807,0.4071276,2701.8,2701.3,4.25184]
[1739540274928,4.1083676,2701.8,2701.3,4.25184]
[1739540275680,0.4071276,2701.8,2701.3,4.25184]
[1739540275843,0.4071276,2701.8,2701.5,0.55]
[1739540276073,0.48516551,2701.7,2701.5,0.55]
[1739540276244,0.48516551,2701.7,2701.4,0.55]
[1739540276559,0.48516551,2701.7,2701.4,4.25175]
[1739540277359,0.48516551,2701.7,2701.2,4.03578]
[1739540277360,3.70071,2702.2,2701.7,3.7013]
[1739540277670,3.70071,2702.2,2701.9,0.55]
[1739540278367,3.70033,2702.5,2701.9,0.55]
[1739540278566,3.70056,2702.3,2701.9,0.55]
[1739540278867,4.51315841,2702.3,2701.9,0.55]
[1739540279635,3.7012,2701.9,2701.4,0.3338]
[1739540279872,3.70128,2701.8,2701.4,0.3338]
[1739540280072,3.70128,2701.8,2701.5,0.55]
[1739540280386,0.370128,2701.7,2701.5,0.55]
[1739540280595,3.70139,2701.7,2701.4,0.3338]
[1739540280800,3.70118,2701.9,2701.4,3.70165]
[1739540281003,3.70091,2702.1,2701.4,3.70165]
[1739540281314,4.51322841,2702.3,2701.8,4.58496]
[1739540281518,0.45132284,2702.2,2701.8,4.58496]
[1739540281669,3.70091,2702.1,2701.5,3.70153]
[1739540281864,0.45132284,2702.2,2701.4,0.3338]
[1739540281865,0.45132284,2702.2,2701.7,3.70126]
[1739540282172,3.70014,2702.6,2702.2,0.55]
[1739540282874,7.40019,2702.7,2702.2,0.55]
[1739540283075,4.47112,2702.9,2702.2,0.55]
[1739540283389,3.69941,2703.2,2702.7,0.55]
[1739540283718,3.69953,2703.1,2702.7,0.55]
[1739540284011,4.439484,2703.0,2702.7,0.55]
[1739540284319,0.739894,2703.0,2702.7,0.55]
[1739540284513,3.69922,2703.3,2702.7,4.24989]
[1739540284743,4.44584051,2703.3,2702.7,4.24998]
[1739540284876,3.69943,2703.2,2702.7,0.55]
[1739540285206,4.44577051,2703.3,2702.6,4.03389]
[1739540285408,3.69933,2703.2,2702.7,0.55]
[1739540285570,4.14414105,2703.1,2702.7,0.55]
[1739540285770,3.69982,2702.9,2702.3,4.03432]
[1739540285993,3.69982,2702.9,2702.4,0.55]
[1739540286194,3.69969,2703.0,2702.4,7.95061]
[1739540286420,3.6996,2703.0,2702.6,0.55]
[1739540286708,0.41441911,2702.9,2702.5,0.55]
[1739540286909,0.41441911,2702.9,2702.3,0.3338]
[1739540286910,3.69987,2702.8,2702.3,4.03432]
[1739540287114,3.69987,2702.8,2702.3,0.3338]
[1739540287276,3.70014,2702.6,2702.3,0.3338]
[1739540287477,0.41441911,2702.9,2702.4,0.55]
[1739540287678,1.57608051,2703.3,2702.4,0.55]
[1739540287879,3.70006,2702.7,2702.4,0.55]
[1739540288213,3.7,2702.8,2702.4,0.55]
[1739540288576,3.69966,2703.0,2702.5,3.70025]
[1739540288807,3.69966,2703.0,2702.3,4.03423]
[1739540289116,3.69974,2702.9,2702.4,4.25039]
[1739540289323,3.70003,2702.7,2702.4,0.55]
[1739540289612,3.70003,2702.7,2702.2,3.0]
[1739540289817,3.70003,2702.7,2702.3,0.55]
[1739540290014,4.069676,2703.0,2702.3,0.55]
[1739540290219,0.4069676,2702.9,2702.4,3.70039]
[1739540290547,3.69988,2702.8,2702.3,4.25046]
[1739540291182,3.70001,2702.7,2702.3,0.55]
[1739540291383,0.739989,2702.6,2702.3,0.55]
[1739540291726,3.69988,2702.8,2702.3,4.25055]
[1739540291883,3.70012,2702.7,2702.3,0.55]
[1739540292082,3.69988,2702.8,2702.3,0.55]
[1739540293048,3.70007,2702.7,2702.3,0.55]
[1739540293187,3.70016,2702.6,2702.3,0.55]
[1739540293526,4.440164,2702.6,2702.3,0.55]
[1739540293905,3.70061,2702.3,2701.8,0.3338]
[1739540294108,3.70061,2702.3,2701.8,4.03496]
[1739540294311,3.70044,2702.4,2701.9,4.251]
[1739540294809,4.5974584,2702.4,2701.9,4.251]
[1739540295026,3.70055,2702.3,2701.9,4.251]
[1739540295207,3.70055,2702.3,2701.9,0.55]
[1739540295533,4.5974584,2702.4,2701.9,0.55]
[1739540295740,3.70069,2702.2,2701.9,0.55]
[1739540295895,4.53050484,2702.2,2701.9,0.55]
[1739540297200,8.23131484,2702.2,2701.9,0.55]
[1739540297396,3.70092,2702.1,2701.7,3.0]
[1739540297709,3.70092,2702.1,2701.4,3.70165]
[1739540297710,0.837,2702.3,2701.4,0.3338]
[1739540298033,3.70155,2701.6,2701.1,4.28637]
[1739540298391,3.70155,2701.6,2701.1,0.5842]
[1739540298601,3.70155,2701.6,2701.1,4.28638]
[1739540298986,3.70155,2701.6,2701.2,0.55]
[1739540299108,3.70144,2701.7,2701.2,4.252]
[1739540299451,3.70167,2701.5,2701.2,0.55]
[1739540299744,3.70144,2701.7,2701.2,0.55]
[1739540299907,4.22682524,2701.9,2701.3,3.70189]
[1739540300107,0.52563524,2701.9,2701.2,0.55]
[1739540300330,3.70145,2701.7,2701.2,0.55]
[1739540300755,7.4029,2701.7,2701.2,0.55]
[1739540300939,3.70145,2701.7,2701.2,0.55]
[1739540301137,7.40291,2701.7,2701.2,0.55]
[1739540301451,3.70151,2701.6,2701.1,4.28628]
[1739540301606,0.740296,2701.5,2701.1,4.28628]
[1739540301948,0.740296,2701.5,2701.2,0.55]